[Event "*** Titled Tuesday Blitz"]
[Site "Chess.com"]
[Date "2020.11.03"]
[Round "3"]
[White "rasmussvane"]
[Black "Karateloru"]
[Result "1-0"]
[WhiteElo "2949"]
[BlackElo "2702"]
[TimeControl "180+1"]
[EndTime "10:31:08 PST"]
[Termination "rasmussvane won on time"]

1. Nf3 {[%clk 0:03:00.9]} 1... Nf6 {[%clk 0:02:59.3]} 2. g3 {[%clk 0:03:01.2]}
2... e6 {[%clk 0:02:59.4]} 3. Bg2 {[%clk 0:03:01.7]} 3... d5 {[%clk 0:03:00.1]}
4. O-O {[%clk 0:03:02.4]} 4... c5 {[%clk 0:03:00.3]} 5. c4 {[%clk 0:03:02.7]}
5... Nc6 {[%clk 0:02:57.9]} 6. cxd5 {[%clk 0:03:03.2]} 6... Nxd5 {[%clk
0:02:58.8]} 7. d4 {[%clk 0:03:03.8]} 7... Be7 {[%clk 0:02:55.5]} 8. dxc5 {[%clk
0:03:03.8]} 8... Bxc5 {[%clk 0:02:55.2]} 9. Bd2 {[%clk 0:03:04.3]} 9... O-O
{[%clk 0:02:54.7]} 10. Nc3 {[%clk 0:03:05]} 10... Nxc3 {[%clk 0:02:54]} 11. Bxc3
{[%clk 0:03:05.9]} 11... Qe7 {[%clk 0:02:54.1]} 12. Qb3 {[%clk 0:02:57.6]} 12...
e5 {[%clk 0:02:50.6]} 13. e3 {[%clk 0:02:35.3]} 13... Be6 {[%clk 0:02:49.7]} 14.
Qb5 {[%clk 0:02:32.1]} 14... a6 {[%clk 0:02:48.4]} 15. Qe2 {[%clk 0:02:31.8]}
15... f6 {[%clk 0:02:47.6]} 16. Nd2 {[%clk 0:02:30.5]} 16... Rac8 {[%clk
0:02:45.2]} 17. Rfd1 {[%clk 0:02:29.5]} 17... Rfd8 {[%clk 0:02:44.6]} 18. a3
{[%clk 0:02:29.6]} 18... Ba7 {[%clk 0:02:41]} 19. Rac1 {[%clk 0:02:28.6]} 19...
h6 {[%clk 0:02:20]} 20. h4 {[%clk 0:02:28]} 20... Kh8 {[%clk 0:02:19.5]} 21. Bf3
{[%clk 0:02:16.3]} 21... Bd5 {[%clk 0:02:18.8]} 22. h5 {[%clk 0:02:11.2]} 22...
Bxf3 {[%clk 0:02:16.5]} 23. Nxf3 {[%clk 0:02:10.8]} 23... Qe6 {[%clk 0:01:55.4]}
24. Nh4 {[%clk 0:02:10.9]} 24... Ne7 {[%clk 0:01:54.4]} 25. Bb4 {[%clk
0:02:07.3]} 25... Nd5 {[%clk 0:01:54.4]} 26. Ng6+ {[%clk 0:02:02.4]} 26... Kh7
{[%clk 0:01:53.2]} 27. Rxc8 {[%clk 0:02:00.3]} 27... Qxc8 {[%clk 0:01:52.6]} 28.
Qd3 {[%clk 0:01:22.6]} 28... e4 {[%clk 0:01:27.2]} 29. Qxe4 {[%clk 0:01:12.9]}
29... f5 {[%clk 0:01:27.5]} 30. Qf3 {[%clk 0:00:59.2]} 30... Nxe3 {[%clk
0:00:48.1]} 31. Rxd8 {[%clk 0:00:50.3]} 31... Qxd8 {[%clk 0:00:49]} 32. fxe3
{[%clk 0:00:50.6]} 32... Qd3 {[%clk 0:00:48.9]} 33. Kf2 {[%clk 0:00:34.7]} 33...
Qc2+ {[%clk 0:00:48.9]} 34. Qe2 {[%clk 0:00:35]} 34... Qe4 {[%clk 0:00:49.2]}
35. Bc3 {[%clk 0:00:29.3]} 35... Qh1 {[%clk 0:00:42.8]} 36. Qf3 {[%clk
0:00:28.7]} 36... Qh2+ {[%clk 0:00:37.5]} 37. Kf1 {[%clk 0:00:28.9]} 37... Qh3+
{[%clk 0:00:37.8]} 38. Ke2 {[%clk 0:00:29.4]} 38... Qh2+ {[%clk 0:00:24.3]} 39.
Kd3 {[%clk 0:00:28.9]} 39... Qg1 {[%clk 0:00:24.6]} 40. Ne7 {[%clk 0:00:19.2]}
40... Qb1+ {[%clk 0:00:22.4]} 41. Kd2 {[%clk 0:00:19.1]} 41... f4 {[%clk
0:00:18.6]} 42. Qxf4 {[%clk 0:00:18.8]} 42... Bc5 {[%clk 0:00:07.5]} 43. Qe5
{[%clk 0:00:13.3]} 1-0

[Event "*** Titled Tuesday Blitz"]
[Site "Chess.com"]
[Date "2020.11.03"]
[Round "3"]
[White "DrVelja"]
[Black "aleksey1203borisovi4"]
[Result "0-1"]
[WhiteElo "2756"]
[BlackElo "2467"]
[TimeControl "180+1"]
[EndTime "10:31:08 PST"]
[Termination "aleksey1203borisovi4 won by resignation"]

1. e4 {[%clk 0:03:00.9]} 1... g6 {[%clk 0:03:00.9]} 2. d4 {[%clk 0:03:00.7]}
2... Bg7 {[%clk 0:02:57.6]} 3. Nc3 {[%clk 0:03:01.2]} 3... d6 {[%clk 0:02:57.8]}
4. Be3 {[%clk 0:03:01.4]} 4... Nf6 {[%clk 0:02:52.5]} 5. Qd2 {[%clk 0:03:00.2]}
5... Nc6 {[%clk 0:02:52.9]} 6. d5 {[%clk 0:02:57.3]} 6... Ne5 {[%clk 0:02:50.1]}
7. O-O-O {[%clk 0:02:54.4]} 7... a6 {[%clk 0:02:39.1]} 8. f4 {[%clk 0:02:50.1]}
8... Ned7 {[%clk 0:02:34.4]} 9. Nf3 {[%clk 0:02:49.2]} 9... O-O {[%clk
0:02:29.6]} 10. h3 {[%clk 0:02:42.9]} 10... b5 {[%clk 0:02:26.1]} 11. a3 {[%clk
0:02:28.9]} 11... Bb7 {[%clk 0:02:20.6]} 12. g4 {[%clk 0:01:42]} 12... c5 {[%clk
0:02:15.1]} 13. dxc6 {[%clk 0:01:29.3]} 13... Bxc6 {[%clk 0:02:14.4]} 14. Bd3
{[%clk 0:01:30.2]} 14... Nc5 {[%clk 0:02:04]} 15. Bd4 {[%clk 0:00:47.1]} 15...
a5 {[%clk 0:01:42.2]} 16. g5 {[%clk 0:00:42.9]} 16... Nfxe4 {[%clk 0:01:36.9]}
17. Bxe4 {[%clk 0:00:40.6]} 17... Nxe4 {[%clk 0:01:32]} 18. Nxe4 {[%clk
0:00:40]} 18... Bxe4 {[%clk 0:01:32.9]} 19. Bxg7 {[%clk 0:00:40.6]} 19... Bxf3
{[%clk 0:01:24]} 20. Bxf8 {[%clk 0:00:41.5]} 20... Qxf8 {[%clk 0:01:19.3]} 21.
f5 {[%clk 0:00:40]} 21... gxf5 {[%clk 0:01:09.5]} 22. Qd3 {[%clk 0:00:37.5]}
22... Be4 {[%clk 0:01:08.6]} 23. Qxb5 {[%clk 0:00:36.9]} 23... Rb8 {[%clk
0:01:03.6]} 24. Qxa5 {[%clk 0:00:35.6]} 24... Qg7 {[%clk 0:00:57.8]} 25. Qc3
{[%clk 0:00:28.1]} 25... Qxc3 {[%clk 0:00:42.9]} 26. bxc3 {[%clk 0:00:29]} 26...
Bxh1 {[%clk 0:00:43.6]} 27. Rxh1 {[%clk 0:00:29.9]} 27... Kg7 {[%clk 0:00:30.8]}
28. Rf1 {[%clk 0:00:27.6]} 28... Kg6 {[%clk 0:00:30.6]} 29. h4 {[%clk
0:00:27.9]} 29... e5 {[%clk 0:00:29.1]} 30. Kd2 {[%clk 0:00:27.3]} 30... f4
{[%clk 0:00:29.5]} 31. Kd3 {[%clk 0:00:27.5]} 31... Kf5 {[%clk 0:00:29.7]} 32.
a4 {[%clk 0:00:27.8]} 32... d5 {[%clk 0:00:29.9]} 33. a5 {[%clk 0:00:28]} 33...
Ra8 {[%clk 0:00:26.8]} 34. Ra1 {[%clk 0:00:28.1]} 34... Ra6 {[%clk 0:00:27.2]}
35. c4 {[%clk 0:00:27.6]} 35... e4+ {[%clk 0:00:25.9]} 36. Kd4 {[%clk
0:00:27.9]} 36... dxc4 {[%clk 0:00:26.3]} 37. Kxc4 {[%clk 0:00:28.8]} 37... Ke5
{[%clk 0:00:25.4]} 38. Kb5 {[%clk 0:00:27.3]} 38... Ra8 {[%clk 0:00:25.3]} 39.
a6 {[%clk 0:00:12.4]} 39... e3 {[%clk 0:00:26.2]} 40. Kc4 {[%clk 0:00:12.4]}
40... Ke4 {[%clk 0:00:26.3]} 41. Kc3 {[%clk 0:00:12.1]} 41... f3 {[%clk
0:00:26.4]} 42. Ra4+ {[%clk 0:00:11]} 42... Kf5 {[%clk 0:00:25.1]} 43. Kd3
{[%clk 0:00:11.9]} 43... e2 {[%clk 0:00:22.1]} 44. Ra1 {[%clk 0:00:09.9]} 44...
Rxa6 {[%clk 0:00:18.9]} 45. Rxa6 {[%clk 0:00:07.2]} 45... e1=Q {[%clk
0:00:17.6]} 46. Rf6+ {[%clk 0:00:08.1]} 46... Kg4 {[%clk 0:00:17.5]} 0-1

[Event "*** Titled Tuesday Blitz"]
[Site "Chess.com"]
[Date "2020.11.03"]
[Round "3"]
[White "kuban1991"]
[Black "Promacherr"]
[Result "0-1"]
[WhiteElo "2892"]
[BlackElo "2684"]
[TimeControl "180+1"]
[EndTime "10:31:09 PST"]
[Termination "Promacherr won on time"]

1. Nf3 {[%clk 0:03:00.9]} 1... d5 {[%clk 0:02:59.7]} 2. g3 {[%clk 0:03:00.9]}
2... c5 {[%clk 0:02:58.3]} 3. Bg2 {[%clk 0:03:00.9]} 3... Nc6 {[%clk 0:02:58.7]}
4. d4 {[%clk 0:03:01.1]} 4... e6 {[%clk 0:02:55.9]} 5. O-O {[%clk 0:03:00.5]}
5... Nf6 {[%clk 0:02:55.9]} 6. c4 {[%clk 0:03:00.1]} 6... cxd4 {[%clk
0:02:49.4]} 7. Nxd4 {[%clk 0:03:00.1]} 7... Bc5 {[%clk 0:02:48.7]} 8. Nb3 {[%clk
0:03:00.1]} 8... Bb6 {[%clk 0:02:48.4]} 9. cxd5 {[%clk 0:02:58.9]} 9... exd5
{[%clk 0:02:49.3]} 10. Nc3 {[%clk 0:02:58.8]} 10... d4 {[%clk 0:02:49.4]} 11.
Na4 {[%clk 0:02:57.5]} 11... O-O {[%clk 0:02:49.9]} 12. Nac5 {[%clk 0:02:29.3]}
12... Qe7 {[%clk 0:02:44]} 13. Nd3 {[%clk 0:02:27.5]} 13... Re8 {[%clk 0:02:44]}
14. Re1 {[%clk 0:02:26.8]} 14... Bg4 {[%clk 0:02:43.5]} 15. Bg5 {[%clk
0:02:18.7]} 15... h6 {[%clk 0:02:38.6]} 16. Bxf6 {[%clk 0:02:17.5]} 16... Qxf6
{[%clk 0:02:39.5]} 17. Qd2 {[%clk 0:02:08.9]} 17... Rad8 {[%clk 0:02:34.6]} 18.
Rac1 {[%clk 0:02:08]} 18... h5 {[%clk 0:02:27.9]} 19. Nbc5 {[%clk 0:01:58.8]}
19... Bxc5 {[%clk 0:01:47.9]} 20. Nxc5 {[%clk 0:01:57.4]} 20... d3 {[%clk
0:01:47.8]} 21. Nxb7 {[%clk 0:01:28.8]} 21... dxe2 {[%clk 0:01:43.2]} 22. Nxd8
{[%clk 0:01:27.7]} 22... Rxd8 {[%clk 0:01:43.9]} 23. Qe3 {[%clk 0:00:48]} 23...
Nd4 {[%clk 0:01:35.8]} 24. f4 {[%clk 0:00:47.7]} 24... Nf5 {[%clk 0:01:32]} 25.
Qf2 {[%clk 0:00:45.2]} 25... Rd1 {[%clk 0:01:25.4]} 26. h3 {[%clk 0:00:42.3]}
26... Qxb2 {[%clk 0:01:23]} 27. Rc8+ {[%clk 0:00:16.3]} 27... Kh7 {[%clk
0:01:22.6]} 28. hxg4 {[%clk 0:00:15.8]} 28... Qd2 {[%clk 0:01:21.2]} 29. gxf5
{[%clk 0:00:10.5]} 29... Rxe1+ {[%clk 0:01:20.1]} 30. Kh2 {[%clk 0:00:10.4]}
30... Rh1+ {[%clk 0:00:54.5]} 31. Bxh1 {[%clk 0:00:10.5]} 31... e1=Q {[%clk
0:00:54.9]} 32. Qxd2 {[%clk 0:00:08.5]} 32... Qxd2+ {[%clk 0:00:55.8]} 33. Kh3
{[%clk 0:00:04.9]} 33... Qd1 {[%clk 0:00:45.3]} 34. Bg2 {[%clk 0:00:03.3]} 34...
Qg4+ {[%clk 0:00:43.6]} 35. Kh2 {[%clk 0:00:03.7]} 35... h4 {[%clk 0:00:44.5]}
36. gxh4 {[%clk 0:00:04.3]} 36... Qxh4+ {[%clk 0:00:44]} 37. Kg1 {[%clk
0:00:04.4]} 37... Qxf4 {[%clk 0:00:44]} 38. Rc2 {[%clk 0:00:03.5]} 38... Qxf5
{[%clk 0:00:41.6]} 39. Re2 {[%clk 0:00:04.1]} 39... Qc5+ {[%clk 0:00:41.4]} 40.
Kf1 {[%clk 0:00:04]} 40... g6 {[%clk 0:00:41.8]} 41. Bf3 {[%clk 0:00:03.5]}
41... Kg7 {[%clk 0:00:42]} 42. Kg2 {[%clk 0:00:04.1]} 42... Qc3 {[%clk
0:00:41.5]} 43. Be4 {[%clk 0:00:04]} 43... a5 {[%clk 0:00:41.5]} 44. Rc2 {[%clk
0:00:04.1]} 44... Qd4 {[%clk 0:00:40.6]} 45. Bf3 {[%clk 0:00:04.4]} 45... a4
{[%clk 0:00:40.9]} 46. Rf2 {[%clk 0:00:04.8]} 46... a3 {[%clk 0:00:40.6]} 47.
Be2 {[%clk 0:00:04.2]} 47... f5 {[%clk 0:00:40]} 48. Bf3 {[%clk 0:00:03]} 48...
Kf6 {[%clk 0:00:40.2]} 49. Re2 {[%clk 0:00:02.9]} 49... g5 {[%clk 0:00:40]} 50.
Kf1 {[%clk 0:00:03.4]} 50... g4 {[%clk 0:00:39.3]} 51. Bg2 {[%clk 0:00:02.8]}
51... f4 {[%clk 0:00:35.2]} 52. Bc6 {[%clk 0:00:02.1]} 52... f3 {[%clk
0:00:31.9]} 0-1

[Event "*** Titled Tuesday Blitz"]
[Site "Chess.com"]
[Date "2020.11.03"]
[Round "3"]
[White "Fiona"]
[Black "ural58"]
[Result "0-1"]
[WhiteElo "2157"]
[BlackElo "2356"]
[TimeControl "180+1"]
[EndTime "10:31:10 PST"]
[Termination "ural58 won by resignation"]

1. e4 {[%clk 0:03:00.9]} 1... d5 {[%clk 0:02:54.5]} 2. exd5 {[%clk 0:03:00.2]}
2... Qxd5 {[%clk 0:02:52.7]} 3. Nc3 {[%clk 0:03:00.9]} 3... Qa5 {[%clk
0:02:52.3]} 4. d4 {[%clk 0:03:01.5]} 4... Nf6 {[%clk 0:02:52.7]} 5. Nf3 {[%clk
0:03:01.9]} 5... Nc6 {[%clk 0:02:52.6]} 6. Bd2 {[%clk 0:03:02]} 6... a6 {[%clk
0:02:51.9]} 7. Ne4 {[%clk 0:02:53.9]} 7... Qb6 {[%clk 0:02:51.3]} 8. Nxf6+
{[%clk 0:02:53]} 8... gxf6 {[%clk 0:02:52.2]} 9. Bc3 {[%clk 0:02:41.8]} 9... Bg4
{[%clk 0:02:49.9]} 10. h3 {[%clk 0:02:35]} 10... Bh5 {[%clk 0:02:49.5]} 11. g4
{[%clk 0:02:27.6]} 11... Bg6 {[%clk 0:02:49.4]} 12. Bd3 {[%clk 0:02:28]} 12...
O-O-O {[%clk 0:02:48.9]} 13. Bxg6 {[%clk 0:01:53.5]} 13... hxg6 {[%clk
0:02:48.3]} 14. Qd2 {[%clk 0:01:47.8]} 14... e5 {[%clk 0:02:48]} 15. O-O-O
{[%clk 0:01:46.3]} 15... exd4 {[%clk 0:02:22.1]} 16. Bxd4 {[%clk 0:01:27.2]}
16... Nxd4 {[%clk 0:02:22]} 17. Nxd4 {[%clk 0:01:27.2]} 17... c5 {[%clk
0:02:12.1]} 18. Qc3 {[%clk 0:01:25.5]} 18... Qb4 {[%clk 0:01:47]} 19. Qxb4
{[%clk 0:01:19.1]} 19... cxb4 {[%clk 0:01:46.8]} 20. Rd3 {[%clk 0:00:50.9]}
20... Bc5 {[%clk 0:01:43.9]} 21. c3 {[%clk 0:00:50.2]} 21... bxc3 {[%clk
0:01:32.3]} 22. bxc3 {[%clk 0:00:51.1]} 22... Rd5 {[%clk 0:01:14.5]} 23. Kc2
{[%clk 0:00:47.6]} 23... b5 {[%clk 0:01:09.6]} 24. f3 {[%clk 0:00:41.9]} 24...
Re5 {[%clk 0:00:53.2]} 25. Nb3 {[%clk 0:00:35.6]} 25... Bb6 {[%clk 0:00:51.6]}
26. Kd2 {[%clk 0:00:33.1]} 26... Rhe8 {[%clk 0:00:50.3]} 27. Nc1 {[%clk
0:00:30]} 27... Bc7 {[%clk 0:00:46.8]} 28. Kc2 {[%clk 0:00:17.4]} 28... Bb6
{[%clk 0:00:45.1]} 29. Rhd1 {[%clk 0:00:17.2]} 29... R8e7 {[%clk 0:00:43.8]} 30.
Nb3 {[%clk 0:00:13.4]} 30... a5 {[%clk 0:00:43.3]} 31. Nd4 {[%clk 0:00:13.2]}
31... Kb7 {[%clk 0:00:41.2]} 32. f4 {[%clk 0:00:10.5]} 32... Rd5 {[%clk
0:00:34.9]} 33. f5 {[%clk 0:00:09.9]} 33... g5 {[%clk 0:00:33.6]} 34. Nb3 {[%clk
0:00:08.1]} 34... Rxd3 {[%clk 0:00:33.5]} 35. Rxd3 {[%clk 0:00:09]} 35... a4
{[%clk 0:00:30.5]} 36. Nd4 {[%clk 0:00:08.2]} 36... Bxd4 {[%clk 0:00:28.8]} 37.
cxd4 {[%clk 0:00:09.1]} 37... Kc6 {[%clk 0:00:28.7]} 38. Kc3 {[%clk 0:00:09.4]}
38... Kd5 {[%clk 0:00:28.8]} 39. Kb4 {[%clk 0:00:07.7]} 39... Re2 {[%clk
0:00:26.5]} 40. Kxb5 {[%clk 0:00:06.3]} 40... Rxa2 {[%clk 0:00:26.5]} 41. Kb4
{[%clk 0:00:06.8]} 41... Ra1 {[%clk 0:00:26.2]} 42. Kb5 {[%clk 0:00:01.6]} 42...
a3 {[%clk 0:00:26.1]} 43. Ka4 {[%clk 0:00:02]} 43... a2 {[%clk 0:00:26.2]} 44.
Ka3 {[%clk 0:00:01.3]} 44... Ke4 {[%clk 0:00:18.7]} 45. Rd2 {[%clk 0:00:01.1]}
45... Ke3 {[%clk 0:00:18.8]} 46. Rxa2 {[%clk 0:00:01.6]} 46... Rxa2+ {[%clk
0:00:19.1]} 47. Kxa2 {[%clk 0:00:02.5]} 47... Kxd4 {[%clk 0:00:19.6]} 48. Kb3
{[%clk 0:00:02.1]} 48... Ke4 {[%clk 0:00:20.3]} 49. Kb2 {[%clk 0:00:03]} 49...
Kf4 {[%clk 0:00:21.2]} 0-1

[Event "*** Titled Tuesday Blitz"]
[Site "Chess.com"]
[Date "2020.11.03"]
[Round "3"]
[White "chessdjw"]
[Black "Zhigalko_Sergei"]
[Result "0-1"]
[WhiteElo "2682"]
[BlackElo "2917"]
[TimeControl "180+1"]
[EndTime "10:31:12 PST"]
[Termination "Zhigalko_Sergei won by resignation"]

1. d4 {[%clk 0:03:00.9]} 1... Nf6 {[%clk 0:03:00]} 2. c4 {[%clk 0:03:01]} 2...
e6 {[%clk 0:03:00.5]} 3. Nf3 {[%clk 0:03:01.1]} 3... b6 {[%clk 0:03:00.8]} 4. g3
{[%clk 0:03:01.4]} 4... Ba6 {[%clk 0:03:01.2]} 5. b3 {[%clk 0:03:01.5]} 5...
Bb4+ {[%clk 0:03:01.4]} 6. Bd2 {[%clk 0:03:02.1]} 6... Be7 {[%clk 0:03:01.9]} 7.
Bg2 {[%clk 0:03:00.8]} 7... c6 {[%clk 0:03:02.2]} 8. Bc3 {[%clk 0:02:59.1]} 8...
d5 {[%clk 0:03:01.4]} 9. Nbd2 {[%clk 0:02:59.5]} 9... Nbd7 {[%clk 0:03:01.7]}
10. O-O {[%clk 0:02:58.7]} 10... O-O {[%clk 0:03:01.8]} 11. Re1 {[%clk
0:02:58.6]} 11... c5 {[%clk 0:03:01.9]} 12. e4 {[%clk 0:02:57.3]} 12... Nxe4
{[%clk 0:03:02.1]} 13. Nxe4 {[%clk 0:02:57.2]} 13... dxe4 {[%clk 0:03:03]} 14.
Rxe4 {[%clk 0:02:57.5]} 14... Bb7 {[%clk 0:03:02.9]} 15. Re2 {[%clk 0:02:58.1]}
15... Bf6 {[%clk 0:02:58]} 16. Rd2 {[%clk 0:02:57.5]} 16... Qc7 {[%clk 0:02:43]}
17. Qc2 {[%clk 0:02:55.4]} 17... Rad8 {[%clk 0:02:33.4]} 18. Rad1 {[%clk
0:02:53.8]} 18... Bxf3 {[%clk 0:02:27.5]} 19. Bxf3 {[%clk 0:02:53.2]} 19... cxd4
{[%clk 0:02:27.9]} 20. Bxd4 {[%clk 0:02:53]} 20... Bxd4 {[%clk 0:02:26.3]} 21.
Rxd4 {[%clk 0:02:53.9]} 21... Ne5 {[%clk 0:02:17.5]} 22. Be4 {[%clk 0:02:53.8]}
22... f5 {[%clk 0:02:04]} 23. Bg2 {[%clk 0:02:50]} 23... Rxd4 {[%clk 0:02:02.6]}
24. Rxd4 {[%clk 0:02:50.9]} 24... Rd8 {[%clk 0:02:03]} 25. Qc3 {[%clk
0:02:43.2]} 25... Rd7 {[%clk 0:01:50.1]} 26. Rxd7 {[%clk 0:02:34.2]} 26... Nxd7
{[%clk 0:01:50.2]} 27. Qd4 {[%clk 0:02:32.4]} 27... Kf7 {[%clk 0:01:47.8]} 28.
h4 {[%clk 0:02:31.8]} 28... Nf6 {[%clk 0:01:40.1]} 29. b4 {[%clk 0:02:23.3]}
29... Qd7 {[%clk 0:01:39.6]} 30. Qxd7+ {[%clk 0:02:19.3]} 30... Nxd7 {[%clk
0:01:40.5]} 31. f4 {[%clk 0:01:56.7]} 31... Ke7 {[%clk 0:01:21.5]} 32. Kf2
{[%clk 0:01:55.8]} 32... Kd6 {[%clk 0:01:18.3]} 33. Ke3 {[%clk 0:01:56.1]} 33...
e5 {[%clk 0:01:18.5]} 34. fxe5+ {[%clk 0:01:52.9]} 34... Kxe5 {[%clk 0:01:16.9]}
35. Bf3 {[%clk 0:01:49.4]} 35... g6 {[%clk 0:01:12.3]} 36. a3 {[%clk 0:01:47.9]}
36... h6 {[%clk 0:01:11.9]} 37. Be2 {[%clk 0:01:43.6]} 37... g5 {[%clk
0:01:11.9]} 38. hxg5 {[%clk 0:01:43.4]} 38... hxg5 {[%clk 0:01:12.8]} 39. Bf3
{[%clk 0:01:42.9]} 39... Nf6 {[%clk 0:01:04.8]} 40. Bg2 {[%clk 0:01:32.4]} 40...
Ng4+ {[%clk 0:00:56.7]} 41. Kd3 {[%clk 0:01:31.5]} 41... Nf6 {[%clk 0:00:47.2]}
42. c5 {[%clk 0:01:23.1]} 42... bxc5 {[%clk 0:00:46.8]} 43. bxc5 {[%clk
0:01:24]} 43... Nh5 {[%clk 0:00:41.5]} 44. Kc4 {[%clk 0:00:29.5]} 44... Nxg3
{[%clk 0:00:41.2]} 45. Kb5 {[%clk 0:00:30.1]} 45... Ne4 {[%clk 0:00:35.1]} 46.
Ka6 {[%clk 0:00:27.1]} 46... Nxc5+ {[%clk 0:00:31.1]} 47. Kxa7 {[%clk
0:00:27.1]} 47... g4 {[%clk 0:00:29]} 48. Kb6 {[%clk 0:00:27.4]} 48... Kd4
{[%clk 0:00:28.3]} 49. Bc6 {[%clk 0:00:22.1]} 49... f4 {[%clk 0:00:23.9]} 50. a4
{[%clk 0:00:20.9]} 50... Nxa4+ {[%clk 0:00:23.4]} 51. Bxa4 {[%clk 0:00:21.8]}
51... f3 {[%clk 0:00:22.7]} 52. Bd7 {[%clk 0:00:15.5]} 52... g3 {[%clk
0:00:22.4]} 53. Bc6 {[%clk 0:00:12.8]} 53... Ke3 {[%clk 0:00:23.3]} 54. Bxf3
{[%clk 0:00:11.9]} 54... Kxf3 {[%clk 0:00:23.5]} 0-1

[Event "*** Titled Tuesday Blitz"]
[Site "Chess.com"]
[Date "2020.11.03"]
[Round "3"]
[White "sopo-tereladze"]
[Black "Synctel"]
[Result "1-0"]
[WhiteElo "2309"]
[BlackElo "1998"]
[TimeControl "180+1"]
[EndTime "10:31:13 PST"]
[Termination "sopo-tereladze won on time"]

1. d4 {[%clk 0:03:00.9]} 1... Nf6 {[%clk 0:02:59.5]} 2. Nf3 {[%clk 0:03:01]}
2... d5 {[%clk 0:02:59]} 3. Bf4 {[%clk 0:03:01.2]} 3... e6 {[%clk 0:02:58.8]} 4.
e3 {[%clk 0:03:01.7]} 4... Bd6 {[%clk 0:02:59]} 5. Bd3 {[%clk 0:03:02.1]} 5...
O-O {[%clk 0:02:57.9]} 6. O-O {[%clk 0:03:01.2]} 6... b6 {[%clk 0:02:58.3]} 7.
Ne5 {[%clk 0:02:58.4]} 7... Bb7 {[%clk 0:02:57.6]} 8. Nd2 {[%clk 0:02:58.7]}
8... c5 {[%clk 0:02:57.9]} 9. c3 {[%clk 0:02:58]} 9... Nc6 {[%clk 0:02:58.2]}
10. Ndf3 {[%clk 0:02:56.8]} 10... Ne7 {[%clk 0:02:57.7]} 11. Bg5 {[%clk
0:02:54.5]} 11... Ne4 {[%clk 0:02:55.3]} 12. Bh4 {[%clk 0:02:51.3]} 12... f6
{[%clk 0:02:51.7]} 13. Ng4 {[%clk 0:02:48.2]} 13... h5 {[%clk 0:02:47.2]} 14.
Nxf6+ {[%clk 0:02:40.5]} 14... Nxf6 {[%clk 0:02:40.5]} 15. Ng5 {[%clk
0:02:38.8]} 15... Qd7 {[%clk 0:02:35.1]} 16. f4 {[%clk 0:02:30.6]} 16... Nf5
{[%clk 0:02:24.8]} 17. Bf2 {[%clk 0:02:23.9]} 17... cxd4 {[%clk 0:02:19.1]} 18.
cxd4 {[%clk 0:02:18.6]} 18... g6 {[%clk 0:02:10.8]} 19. Qf3 {[%clk 0:02:16.7]}
19... Ng4 {[%clk 0:02:03.5]} 20. h3 {[%clk 0:02:14.1]} 20... Nxf2 {[%clk
0:02:00.7]} 21. Qxf2 {[%clk 0:02:15]} 21... Be7 {[%clk 0:01:55.4]} 22. g4 {[%clk
0:02:07.3]} 22... hxg4 {[%clk 0:01:23.4]} 23. hxg4 {[%clk 0:02:08.2]} 23... Nh6
{[%clk 0:01:20]} 24. Qh4 {[%clk 0:01:44.8]} 24... Kg7 {[%clk 0:01:17.3]} 25. Kg2
{[%clk 0:01:38.8]} 25... Bxg5 {[%clk 0:01:14.1]} 26. Qxg5 {[%clk 0:01:37.1]}
26... Qf7 {[%clk 0:01:09.4]} 27. Qe5+ {[%clk 0:01:22]} 27... Qf6 {[%clk
0:00:19.8]} 28. Qxf6+ {[%clk 0:01:17.2]} 28... Rxf6 {[%clk 0:00:20.7]} 29. g5
{[%clk 0:01:18]} 29... Rff8 {[%clk 0:00:21.1]} 30. gxh6+ {[%clk 0:01:18.5]}
30... Kxh6 {[%clk 0:00:21.7]} 31. Kf3 {[%clk 0:01:18.1]} 31... Kg7 {[%clk
0:00:14.1]} 32. Rg1 {[%clk 0:01:17.4]} 32... Rf6 {[%clk 0:00:13.9]} 33. Rg5
{[%clk 0:01:18.3]} 33... Rh8 {[%clk 0:00:13.5]} 34. Rag1 {[%clk 0:01:19.2]}
34... Rh6 {[%clk 0:00:14.1]} 35. R1g3 {[%clk 0:01:14.3]} 35... Kf7 {[%clk
0:00:14.4]} 36. Kg2 {[%clk 0:01:10.9]} 36... Bc6 {[%clk 0:00:14.8]} 37. b3
{[%clk 0:01:09.6]} 37... a5 {[%clk 0:00:14]} 38. a4 {[%clk 0:01:08.5]} 38... Bd7
{[%clk 0:00:14.5]} 39. Ba6 {[%clk 0:01:05.1]} 39... Be8 {[%clk 0:00:14.2]} 40.
Bb7 {[%clk 0:01:04.2]} 40... Ke7 {[%clk 0:00:14.7]} 41. Rh3 {[%clk 0:00:52.8]}
41... Rxh3 {[%clk 0:00:13.6]} 42. Kxh3 {[%clk 0:00:53.7]} 42... Rf8 {[%clk
0:00:14]} 43. Kg2 {[%clk 0:00:50.7]} 43... Rh8 {[%clk 0:00:14]} 44. Ba6 {[%clk
0:00:46]} 44... Kf6 {[%clk 0:00:13]} 45. Bd3 {[%clk 0:00:45.7]} 45... Bf7 {[%clk
0:00:09.7]} 46. Kf3 {[%clk 0:00:30.1]} 46... Rc8 {[%clk 0:00:08.9]} 47. Rg2
{[%clk 0:00:29.8]} 47... Rc3 {[%clk 0:00:08.5]} 48. Bc2 {[%clk 0:00:30.7]} 48...
Be8 {[%clk 0:00:06.5]} 49. Ke2 {[%clk 0:00:29.5]} 49... Bd7 {[%clk 0:00:04.1]}
50. Kd2 {[%clk 0:00:29.4]} 50... Rc8 {[%clk 0:00:04.1]} 51. Rxg6+ {[%clk
0:00:29.3]} 51... Kf7 {[%clk 0:00:02.9]} 52. Rh6 {[%clk 0:00:29.2]} 52... Rg8
{[%clk 0:00:02.7]} 53. Rh7+ {[%clk 0:00:29.2]} 53... Ke8 {[%clk 0:00:03]} 54.
Kc3 {[%clk 0:00:28.3]} 54... Kd8 {[%clk 0:00:02.2]} 55. Bd3 {[%clk 0:00:27.6]}
1-0